[Event "4NCL 2nd Div 2023-24"]
[Site "Daventry"]
[Date "2024.05.04"]
[Round "9.17"]
[White "Mestel, A Jonathan"]
[Black "Willson, Ollie"]
[Result "1-0"]
[ECO "A14"]
[WhiteElo "2472"]
[BlackElo "2106"]
[Annotator "TA"]
[PlyCount "179"]
[EventDate "2023.11.11"]
[EventType "team-tourn"]
[EventCountry "ENG"]
[SourceTitle "playchess.com"]
[Source "ChessBase"]
[SourceQuality "1"]
[TimeControl "40/6000+30:3000+30"]

{[%evp 67,179,188,215,228,220,210,211,205,223,206,206,178,182,178,181,165,184,122,172,152,179,156,183,169,186,157,161,152,158,158,213,168,179,153,191,153,185,153,169,160,213,185,206,173,214,214,236,235,235,235,234,240,234,234,268,234,241,224,260,237,849,762,790,653,1044,1076,981,215,939,930,915,903,895,879,833,567,565,575,802,349,349,354,379,397,358,335,757,730,831,814,875,875,1043,866,906,893,1002,993,1183,1052,1460,1358,2976,2797,2279,2157,29976,29977,29982,29983,29983,29976,29987,29988]} 1. c4 {[%emt 0:00:18]} e6 {[%emt 0:00:23]} 2. Nf3 {[%emt 0:00:41]} Nf6 {[%emt 0:00:15]} 3. g3 {[%emt 0:00:45]} d5 {[%emt 0:00:17]} 4. b3 {[%emt 0:00:48]} Be7 {[%emt 0:03:30]} 5. Bg2 {[%emt 0:00:51]} O-O {[%emt 0:00:11]} 6. O-O {[%emt 1:40:07]} c5 {[%emt 0:01:57]} 7. e3 {[%emt 0:00:00]} b6 {[%emt 0:05:07]} 8. Qe2 {[%emt 0:00:00]} Bb7 {[%emt 0:01:26]} 9. Bb2 {[%emt 0:00:00]} Nbd7 {[%emt 0:01:35]} 10. d3 {[%emt 0:00:00]} Qc7 {[%emt 0:05:07]} 11. Nc3 {[%emt 0:00:00]} Rad8 {[%emt 0:02:01]} 12. e4 {[%emt 0:00:00] A14: English Opening: 1...e6 with b3 by White.} d4 {[%emt 0:20:58]} 13. Nd1 {[%emt 0:00:00]} Rfe8 $146 {[%emt 0:08:21]} ({Predecessor:} 13... g6 14. Bc1 Nh5 15. Bh6 Rfe8 16. Ng5 e5 17. f4 exf4 18. g4 Ng7 19. Nh3 Ne6 20. Nxf4 Nxf4 21. Bxf4 {0-1 Krassowizkij,J (2438)-Bischoff,K (2504) Bundesliga 1617 2016 (12.4)}) 14. Bc1 {[%emt 0:00:00]} e5 {[%emt 0:22:33]} 15. Ne1 {[%emt 0:00:00]} Bc8 {[%emt 0:03:55]} 16. f4 {[%emt 0:00:00]} Bd6 {[%emt 0:04:13]} 17. f5 {[%emt 0:00:00]} Be7 {[%emt 0:01:25]} 18. g4 {[%emt 0:00:00]} h6 {[%emt 0:00:02]} 19. h4 {[%emt 0:00:00]} Nh7 {[%emt 0:04:33]} 20. Nf3 {[%emt 0:00:00]} f6 {[%emt 0:00:05]} 21. Nf2 {[%emt 0:00:00]} Qd6 {[%emt 0:00:46]} 22. Nh1 {[%emt 0:00:00]} Kh8 {[%emt 0:04:45]} 23. Ng3 {[%emt 0:00:00]} Rg8 {[%emt 0:02:13]} 24. Kf2 {[%emt 0:00:00]} Ndf8 {[%emt 0:03:33]} 25. Rh1 {[%emt 0:00:00]} g5 {[%emt 0:01:20]} 26. Bd2 {[%emt 0:00:00]} Bd7 {[%emt 0:04:02]} 27. Rh2 {[%emt 0:00:00]} Be8 {[%emt 0:01:37]} 28. Rah1 {[%emt 0:00:00]} Qc7 {[%emt 0:02:33]} 29. hxg5 {[%emt 0:00:00]} hxg5 {[%emt 0:00:02]} 30. Rh6 {[%emt 0:00:00]} Rd6 {[%emt 0:00:45]} 31. Nh5 {[%emt 0:00:00]} Bxh5 {[%emt 0:01:07]} 32. R1xh5 {[%emt 0:00:00]} Rg7 {[%emt 0:02:00]} 33. Qe1 {[%emt 0:00:00]} Kg8 {[%emt 0:00:26]} 34. Bf1 {[%emt 0:00:00]} Bd8 {[%emt 0:00:57]} 35. Be2 {[%emt 0:00:00]} a6 {[%emt 0:00:47]} 36. Qc1 {[%emt 0:00:00]} Be7 {[%emt 0:00:50]} 37. a3 {[%emt 0:00:00]} a5 {[%emt 0:01:13]} 38. Rh1 {[%emt 0:00:00]} Rd8 {[%emt 0:00:28]} 39. Ne1 {[%emt 0:00:00]} Rb8 {[%emt 0:00:20]} 40. Nc2 {[%emt 0:00:00]} Ra8 {[%emt 0:01:34]} 41. Qb2 {[%emt 0:51:01]} Bd6 {[%emt 0:09:28]} 42. Rb1 {[%emt 0:00:00]} (42. a4 $18) 42... Qc6 {[%emt 0:00:50]} (42... Nd7 $16 43. Rbh1 Ndf8) 43. Ne1 {[%emt 0:00:00]} Rb7 {[%emt 0:09:36]} 44. Nf3 {[%emt 0:00:00]} Rab8 {[%emt 0:02:26]} 45. Qa2 {[%emt 0:00:00]} Kg7 {[%emt 0:02:27]} 46. Rhh1 {[%emt 0:00:00]} Ra7 {[%emt 0:00:57]} 47. Qc2 {[%emt 0:00:00]} Rba8 {[%emt 0:02:47]} 48. Qc1 {[%emt 0:00:00]} Be7 {[%emt 0:02:17]} (48... Kf7 $16 49. Rh6 Qd7) 49. Bd1 {[%emt 0:00:00]} Rb7 {[%emt 0:03:29]} 50. Bc2 {[%emt 0:00:00]} Rba7 {[%emt 0:00:50]} 51. Qf1 {[%emt 0:00:00]} Qe8 {[%emt 0:05:03]} 52. Qh3 {[%emt 0:00:00]} Kg8 {[%emt 0:02:58]} 53. Rh2 {[%emt 0:00:00]} Qf7 {[%emt 0:01:07]} (53... Bd6 $16 54. Qh6 (54. Rbh1 b5 $18) 54... Qb8) 54. Rbh1 $18 {[%emt 0:00:00]} Qg7 {[%emt 0:00:58]} 55. Qf1 {[%emt 0:00:00]} Rb7 {[%emt 0:01:00]} 56. Rh6 {[%emt 0:00:00]} Raa7 {[%emt 0:01:11]} 57. Qh3 {[%emt 0:00:00]} Bd8 {[%emt 0:04:04]} 58. Ng1 {[%emt 0:00:00]} Rb8 {[%emt 0:00:29]} 59. Ne2 {[%emt 0:00:00]} Rbb7 {[%emt 0:00:48]} 60. Ng3 {[%emt 0:00:00]} Rb8 {[%emt 0:01:34]} 61. Bc1 {[%emt 0:00:00]} Rba8 {[%emt 0:00:28]} 62. Ke2 {[%emt 0:00:00]} Rb8 {[%emt 0:00:22]} 63. Qh5 {[%emt 0:00:00]} Be7 $2 {[%emt 0:02:43]} (63... Qf7 64. Rg6+ Kh8) 64. Rg6 $18 {[%emt 0:00:00]} Nxg6 {[%emt 0:00:06]} 65. fxg6 {[%emt 0:00:00]} Nf8 {[%emt 0:01:19]} 66. Nf5 {[%emt 0:00:00]} Qxg6 {[%emt 0:00:44]} 67. Qh8+ {[%emt 0:00:00]} Kf7 {[%emt 0:00:24]} 68. Rh6 {[%emt 0:00:00]} Qxh6 {[%emt 0:03:18]} 69. Qxh6 {[%emt 0:01:45]} Rbb7 {[%emt 0:01:20]} 70. Qg7+ {[%emt 0:13:52]} Ke8 {[%emt 0:00:30]} 71. Nxe7 {[%emt 0:00:10]} Rxe7 {[%emt 0:00:05]} 72. Qxf6 {[%emt 0:00:04]} Ne6 {[%emt 0:00:53]} 73. Qxe5 {[%emt 0:01:51]} (73. Bxg5 $142 Nxg5 74. Qxg5) 73... Nf4+ $18 {[%emt 0:00:29]} 74. Bxf4 {[%emt 0:00:05]} Rxe5 {[%emt 0:00:06]} 75. Bxe5 {[%emt 0:00:03]} Rh7 {[%emt 0:00:33]} 76. Bd1 {[%emt 0:01:44]} Kd7 $2 {[%emt 0:01:02]} (76... Ke7 77. Kd2 Ke6) 77. Bf6 $18 {[%emt 0:00:45]} Ke6 {[%emt 0:00:29]} 78. Bxg5 {[%emt 0:01:14]} Rh2+ {[%emt 0:00:37]} 79. Ke1 {[%emt 0:00:12]} Rh1+ {[%emt 0:00:28]} 80. Kd2 {[%emt 0:00:10]} Rh2+ {[%emt 0:00:10]} 81. Be2 {[%emt 0:00:08]} Rh8 {[%emt 0:00:10]} 82. Bf4 {[%emt 0:00:18]} Ra8 {[%emt 0:00:09]} 83. Bd1 {[%emt 0:00:24]} Ra7 {[%emt 0:00:19]} 84. g5 {[%emt 0:00:11]} Rf7 {[%emt 0:00:20]} 85. Bg4+ {[%emt 0:00:17]} Ke7 {[%emt 0:00:06]} 86. Bf5 {[%emt 0:00:15]} Rf8 {[%emt 0:00:26]} 87. Be5 {[%emt 0:00:15]} a4 {[%emt 0:01:06]} 88. bxa4 {[%emt 0:00:07]} Ra8 {[%emt 0:00:11]} 89. g6 {[%emt 0:00:09]} b5 {[%emt 0:01:34]} 90. cxb5 {[%emt 0:00:07]} 1-0

[Event "4NCL 2nd Div 2023-24"]
[Site "Daventry"]
[Date "2024.05.04"]
[Round "9.18"]
[White "Graham, David B"]
[Black "Richardson, John R"]
[Result "1/2-1/2"]
[ECO "B12"]
[WhiteElo "2149"]
[BlackElo "2287"]
[Annotator "RC"]
[PlyCount "97"]
[EventDate "2023.11.11"]
[EventType "team-tourn"]
[EventCountry "ENG"]
[SourceTitle "playchess.com"]
[Source "ChessBase"]
[SourceQuality "1"]
[TimeControl "40/6000+30:3000+30"]

1. e4 {[%emt 0:00:03]} c6 {[%emt 0:00:01]} 2. d4 {[%emt 0:00:05]} d5 {[%emt 0:00:04]} 3. e5 {[%emt 0:00:09]} Bf5 {[%emt 0:00:06]} 4. Nf3 {[%emt 0:00:21]} e6 {[%emt 0:00:05]} 5. Be2 {[%emt 0:00:16]} c5 {[%emt 0:00:04]} 6. O-O {[%emt 0:01:27]} Nc6 {[%emt 0:00:07]} 7. c3 {[%emt 0:03:37]} cxd4 {[%emt 0:03:13]} 8. Nxd4 {[%emt 0:04:16]} Nxd4 {[%emt 0:09:54]} 9. cxd4 {[%emt 0:00:52]} Ne7 {[%emt 0:00:33]} 10. Nc3 {[%emt 0:05:45]} f6 {[%emt 0:13:59]} 11. exf6 {[%emt 0:12:18]} gxf6 {[%emt 0:00:02]} 12. Re1 {[%emt 0:10:22]} Kf7 {[%emt 0:14:31]} 13. Bf4 {[%emt 0:09:11]} Nc6 {[%emt 0:01:06]} 14. Bh5+ {[%emt 0:02:11]} Bg6 {[%emt 0:00:26]} 15. Bg4 {[%emt 0:01:50]} f5 {[%emt 0:00:05]} 16. Bf3 {[%emt 0:01:28]} Bg7 {[%emt 0:02:38]} 17. Nb5 {[%emt 0:10:38]} Qb6 {[%emt 0:09:10]} 18. Nc7 {[%emt 0:09:25]} Bxd4 {[%emt 0:00:06]} 19. Rxe6 {[%emt 0:06:35]} Rac8 {[%emt 0:11:51]} 20. Bxd5 {[%emt 0:02:05]} Kg7 {[%emt 0:02:39]} 21. Qe2 {[%emt 0:06:50]} Rxc7 {[%emt 0:21:15]} 22. Bxc7 {[%emt 0:00:22]} Qxc7 {[%emt 0:00:06]} 23. Bxc6 {[%emt 0:05:04]} Bf7 {[%emt 0:00:06]} 24. Rd1 {[%emt 0:09:27]} Rd8 {[%emt 0:06:21]} 25. Bf3 {[%emt 0:00:11]} Bxe6 {[%emt 0:11:18]} 26. Qxe6 {[%emt 0:00:14]} Qc5 {[%emt 0:00:04]} 27. Qe2 {[%emt 0:02:20]} Qb6 {[%emt 0:00:21]} 28. g3 {[%emt 0:00:47]} Rf8 {[%emt 0:01:05]} 29. Qe7+ {[%emt 0:01:18]} Rf7 {[%emt 0:02:18]} 30. Qg5+ {[%emt 0:00:07]} Kf8 {[%emt 0:00:09]} 31. Rc1 {[%emt 0:02:34]} Bxf2+ {[%emt 0:00:54]} 32. Kg2 {[%emt 0:00:04]} Bc5 {[%emt 0:00:03]} 33. Bd5 {[%emt 0:01:55]} h6 {[%emt 0:00:41]} 34. Qf4 {[%emt 0:01:07]} Rf6 {[%emt 0:01:15]} 35. Qb8+ {[%emt 0:00:58]} Ke7 {[%emt 0:00:01]} 36. Qxb7+ {[%emt 0:00:53]} Qxb7 {[%emt 0:00:38]} 37. Bxb7 {[%emt 0:00:05]} Bb6 {[%emt 0:00:21]} 38. Re1+ {[%emt 0:00:51]} Kd6 {[%emt 0:00:12]} 39. Rf1 {[%emt 0:00:28]} Ke5 {[%emt 0:00:55]} 40. Rd1 {[%emt 0:00:28]} Bd4 {[%emt 0:01:07]} 41. b3 {[%emt 0:03:53]} Rf7 {[%emt 0:00:06]} 42. Re1+ {[%emt 0:02:00]} Kf6 {[%emt 0:11:31]} 43. Ba6 {[%emt 0:02:10]} Rd7 {[%emt 0:03:59]} 44. Bc4 {[%emt 0:03:53]} Be5 {[%emt 0:02:44]} 45. Re2 {[%emt 0:02:08]} Rd1 {[%emt 0:01:19]} 46. a4 {[%emt 0:00:40]} a5 {[%emt 0:01:10]} 47. Rc2 {[%emt 0:04:35]} Rb1 {[%emt 0:02:29]} 48. Rf2 {[%emt 0:00:58]} Rb2 {[%emt 0:00:25]} 49. Rxb2 {[%emt 0:35:46]} 1/2-1/2

[Event "4NCL 2nd Div 2023-24"]
[Site "Daventry"]
[Date "2024.05.04"]
[Round "9.19"]
[White "Bradbury, Neil H"]
[Black "Brewer, Callum D"]
[Result "0-1"]
[ECO "E04"]
[WhiteElo "2182"]
[BlackElo "2155"]
[Annotator "NA RC"]
[PlyCount "68"]
[EventDate "2023.11.11"]
[EventType "team-tourn"]
[EventCountry "ENG"]
[SourceTitle "playchess.com"]
[Source "ChessBase"]
[SourceQuality "1"]
[TimeControl "40/6000+30:3000+30"]

1. d4 {[%emt 0:00:08]} Nf6 {[%emt 0:00:03]} 2. Nf3 {[%emt 0:00:12]} d5 {[%emt 0:00:03]} 3. c4 {[%emt 0:00:12]} e6 {[%emt 0:00:03]} 4. g3 {[%emt 0:00:12]} dxc4 {[%emt 0:00:39]} 5. Bg2 {[%emt 0:00:06]} Nc6 {[%emt 0:00:09]} 6. O-O {[%emt 0:01:30]} Rb8 {[%emt 0:00:02]} 7. Bg5 {[%emt 0:12:51]} Be7 {[%emt 0:00:12]} 8. e3 {[%emt 0:03:47]} O-O {[%emt 0:05:18]} 9. Qc1 {[%emt 0:08:10]} b5 {[%emt 0:08:44]} 10. Nbd2 {[%emt 0:11:31]} Nd5 {[%emt 0:12:03]} 11. Bxe7 {[%emt 0:08:16]} Qxe7 {[%emt 0:00:24]} 12. a3 {[%emt 0:00:19]} Na5 {[%emt 0:16:05]} 13. e4 {[%emt 0:02:16]} Nb6 {[%emt 0:01:21]} 14. Qc3 {[%emt 0:00:29]} Nb7 {[%emt 0:07:25]} 15. b3 {[%emt 0:01:06]} cxb3 {[%emt 0:02:21]} 16. Nxb3 {[%emt 0:00:27]} Nc4 {[%emt 0:03:26]} 17. Rfc1 {[%emt 0:10:11]} Bd7 {[%emt 0:06:44]} 18. Nbd2 {[%emt 0:08:49]} Nxd2 {[%emt 0:06:50]} 19. Nxd2 {[%emt 0:00:27]} Rfc8 {[%emt 0:00:02]} 20. Nb3 {[%emt 0:01:55]} e5 {[%emt 0:03:27]} 21. Qb4 {[%emt 0:19:13]} Qd6 {[%emt 0:10:29]} 22. dxe5 {[%emt 0:01:30]} Qxe5 {[%emt 0:00:43]} 23. f4 {[%emt 0:04:07]} Qf6 {[%emt 0:03:52]} 24. Nc5 {[%emt 0:04:46]} Qb6 {[%emt 0:01:48]} 25. e5 {[%emt 0:01:51]} a5 {[%emt 0:03:13]} 26. Qd4 {[%emt 0:01:50]} Nxc5 {[%emt 0:00:10]} 27. Rxc5 {[%emt 0:01:21]} b4 {[%emt 0:02:04]} 28. axb4 {[%emt 0:00:46]} axb4 {[%emt 0:00:03]} 29. Rb1 {[%emt 0:00:30]} Bf5 {[%emt 0:01:42]} 30. Rb2 {[%emt 0:01:47]} Rd8 {[%emt 0:00:42]} 31. Qc4 {[%emt 0:01:29]} Rd1+ {[%emt 0:07:56]} 32. Kf2 {[%emt 0:00:09]} Bd3 {[%emt 0:00:26]} 33. Qd5 {[%emt 0:01:26]} Bb5 {[%emt 0:03:37]} 34. Qxd1 {[%emt 0:00:40]} Qxc5+ {[%emt 0:00:02]} 0-1

[Event "4NCL 2nd Div 2023-24"]
[Site "Daventry"]
[Date "2024.05.04"]
[Round "9.20"]
[White "Grant, David J"]
[Black "Banerjee, Supratit"]
[Result "1-0"]
[ECO "C10"]
[WhiteElo "2103"]
[BlackElo "2139"]
[Annotator "NA RC"]
[PlyCount "105"]
[EventDate "2023.11.11"]
[EventType "team-tourn"]
[EventCountry "ENG"]
[SourceTitle "playchess.com"]
[Source "ChessBase"]
[SourceQuality "1"]
[TimeControl "40/6000+30:3000+30"]

1. e4 {[%emt 0:00:10]} e6 {[%emt 0:01:41]} 2. d4 {[%emt 0:00:23]} d5 {[%emt 0:00:11]} 3. Nc3 {[%emt 0:00:46]} dxe4 {[%emt 0:01:54]} 4. Nxe4 {[%emt 0:03:26]} Nd7 {[%emt 0:01:07]} 5. Nf3 {[%emt 0:03:26]} Ngf6 {[%emt 0:00:24]} 6. Nxf6+ {[%emt 0:00:50]} Nxf6 {[%emt 0:00:24]} 7. c3 {[%emt 0:00:26]} c5 {[%emt 0:06:08]} 8. Ne5 {[%emt 0:01:09]} a6 {[%emt 0:02:40]} 9. Qa4+ {[%emt 0:01:57]} Bd7 {[%emt 0:01:28]} 10. Nxd7 {[%emt 0:02:32]} Qxd7 {[%emt 0:05:47]} 11. Qxd7+ {[%emt 0:02:23]} Nxd7 {[%emt 0:00:27]} 12. Be3 {[%emt 0:00:47]} O-O-O {[%emt 0:13:42]} 13. O-O-O {[%emt 0:02:25]} cxd4 {[%emt 0:23:46]} 14. Rxd4 {[%emt 0:17:17]} g6 {[%emt 0:09:06]} 15. Be2 {[%emt 0:12:02]} Bg7 {[%emt 0:07:41]} 16. Rc4+ {[%emt 0:02:07]} Kb8 {[%emt 0:03:09]} 17. Rb4 {[%emt 0:05:30]} Ka8 {[%emt 0:17:39]} 18. Bf3 {[%emt 0:01:48]} Rb8 {[%emt 0:03:00]} 19. Ra4 {[%emt 0:01:33]} Rbc8 {[%emt 0:01:54]} 20. Rxa6+ {[%emt 0:05:34]} Kb8 {[%emt 0:01:04]} 21. Ra5 {[%emt 0:08:40]} Rc7 {[%emt 0:03:08]} 22. Rd1 {[%emt 0:04:25]} f5 {[%emt 0:03:01]} 23. Rd6 {[%emt 0:11:39]} e5 {[%emt 0:01:00]} 24. Kc2 {[%emt 0:10:13]} Re8 {[%emt 0:00:50]} 25. g3 {[%emt 0:04:39]} Bf8 {[%emt 0:00:45]} 26. Rdd5 {[%emt 0:00:20]} Bg7 {[%emt 0:00:45]} 27. Ra4 {[%emt 0:01:44]} e4 {[%emt 0:00:29]} 28. Rda5 {[%emt 0:01:05]} Rcc8 {[%emt 0:00:31]} 29. Ra8+ {[%emt 0:01:34]} Kc7 {[%emt 0:00:05]} 30. Rc4+ {[%emt 0:00:04]} Kd6 {[%emt 0:00:12]} 31. Rcxc8 {[%emt 0:00:48]} Rxc8 {[%emt 0:00:08]} 32. Rxc8 {[%emt 0:00:03]} exf3 {[%emt 0:00:08]} 33. Bf4+ {[%emt 0:01:19]} Ke6 {[%emt 0:00:51]} 34. Rc7 {[%emt 0:01:46]} b6 {[%emt 0:00:17]} 35. Rc6+ {[%emt 0:00:25]} Kf7 {[%emt 0:00:20]} 36. Kd2 {[%emt 0:01:03]} Nc5 {[%emt 0:01:47]} 37. Rxb6 {[%emt 0:01:10]} Ne4+ {[%emt 0:00:15]} 38. Ke1 {[%emt 0:00:32]} g5 {[%emt 0:00:45]} 39. Be3 {[%emt 0:00:26]} h5 {[%emt 0:00:33]} 40. a4 {[%emt 0:00:23]} f4 {[%emt 0:00:42]} 41. gxf4 {[%emt 0:50:36]} g4 {[%emt 0:50:08]} 42. a5 {[%emt 0:00:00]} h4 {[%emt 0:00:00]} 43. a6 {[%emt 0:00:00]} g3 {[%emt 0:00:00]} 44. fxg3 {[%emt 0:00:00]} hxg3 {[%emt 0:00:00]} 45. hxg3 {[%emt 0:00:00]} Bf8 {[%emt 0:00:00]} 46. Rb7+ {[%emt 0:00:00]} Ke6 {[%emt 0:00:00]} 47. a7 {[%emt 0:00:00]} f2+ {[%emt 0:00:00]} 48. Bxf2 {[%emt 0:00:00]} Nxf2 {[%emt 0:00:00]} 49. Kxf2 {[%emt 0:00:00]} Bc5+ {[%emt 0:00:00]} 50. Kf3 {[%emt 0:00:00]} Bxa7 {[%emt 0:00:00]} 51. Rxa7 {[%emt 0:00:00]} Kf5 {[%emt 0:00:00]} 52. g4+ {[%emt 0:00:00]} Kf6 {[%emt 0:00:00]} 53. Ra5 {[%emt 0:00:00]} 1-0

[Event "4NCL 2nd Div 2023-24"]
[Site "Daventry"]
[Date "2024.05.04"]
[Round "9.21"]
[White "Snape, Ian L"]
[Black "Granat, Russell G"]
[Result "1/2-1/2"]
[ECO "E94"]
[WhiteElo "2086"]
[BlackElo "2160"]
[Annotator "RC"]
[PlyCount "115"]
[EventDate "2023.11.11"]
[EventType "team-tourn"]
[EventCountry "ENG"]
[SourceTitle "playchess.com"]
[Source "ChessBase"]
[SourceQuality "1"]
[TimeControl "40/6000+30:3000+30"]

1. c4 {[%emt 0:00:04]} g6 {[%emt 0:00:15]} 2. Nc3 {[%emt 0:00:39]} Bg7 {[%emt 0:00:18]} 3. d4 {[%emt 0:00:09]} Nf6 {[%emt 0:00:26]} 4. e4 {[%emt 0:00:06]} O-O {[%emt 0:00:21]} 5. Nf3 {[%emt 0:00:14]} d6 {[%emt 0:00:25]} 6. Be2 {[%emt 0:00:06]} e5 {[%emt 0:02:37]} 7. O-O {[%emt 0:00:25]} h6 {[%emt 0:00:43]} 8. Qc2 {[%emt 0:05:26]} Nc6 {[%emt 0:02:35]} 9. dxe5 {[%emt 0:00:50]} dxe5 {[%emt 0:00:43]} 10. Rd1 {[%emt 0:06:17]} Nd4 {[%emt 0:03:36]} 11. Nxd4 {[%emt 0:01:26]} exd4 {[%emt 0:00:07]} 12. Nb5 {[%emt 0:03:18]} c5 {[%emt 0:02:08]} 13. e5 {[%emt 0:09:06]} Ne8 {[%emt 0:08:45]} 14. f4 {[%emt 0:02:38]} a6 {[%emt 0:02:29]} 15. Na3 {[%emt 0:00:05]} Nc7 {[%emt 0:04:43]} 16. Bd2 {[%emt 0:03:10]} b6 {[%emt 0:11:15]} 17. Rf1 {[%emt 0:04:38]} Bf5 {[%emt 0:03:35]} 18. Bd3 {[%emt 0:00:16]} Bxd3 {[%emt 0:00:14]} 19. Qxd3 {[%emt 0:00:09]} f5 {[%emt 0:00:35]} 20. Nc2 {[%emt 0:04:14]} Ne6 {[%emt 0:04:01]} 21. Ne1 {[%emt 0:02:09]} Rf7 {[%emt 0:03:10]} 22. b4 {[%emt 0:05:38]} Bf8 {[%emt 0:01:00]} 23. a3 {[%emt 0:00:55]} Rc8 {[%emt 0:02:52]} 24. Rf2 {[%emt 0:10:49]} Qd7 {[%emt 0:05:04]} 25. Nf3 {[%emt 0:02:02]} Qc6 {[%emt 0:02:29]} 26. Rc1 {[%emt 0:04:56]} cxb4 {[%emt 0:04:05]} 27. axb4 {[%emt 0:01:04]} a5 {[%emt 0:01:24]} 28. bxa5 {[%emt 0:08:13]} Qe4 {[%emt 0:04:39]} 29. Ne1 {[%emt 0:06:50]} Nc5 {[%emt 0:03:44]} 30. Qg3 {[%emt 0:29:38]} Rc6 {[%emt 0:05:57]} 31. Rf3 {[%emt 0:00:00]} bxa5 {[%emt 0:01:23]} 32. Bxa5 {[%emt 0:00:00]} Rb7 {[%emt 0:05:00]} 33. Nd3 {[%emt 0:00:00]} Ra6 {[%emt 0:05:26]} 34. Bd8 {[%emt 0:00:00]} Qc6 {[%emt 0:03:27]} 35. Nxc5 {[%emt 0:00:00]} Bxc5 {[%emt 0:00:08]} 36. Bf6 {[%emt 0:00:00]} Kh7 {[%emt 0:02:53]} 37. h4 {[%emt 0:00:00]} h5 {[%emt 0:02:20]} 38. Kh1 {[%emt 0:00:00]} Rab6 {[%emt 0:03:38]} 39. Qg5 {[%emt 0:00:00]} Bf8 {[%emt 0:04:39]} 40. Rg3 {[%emt 0:04:16]} Qe8 {[%emt 0:01:28]} 41. Rd3 {[%emt 0:03:08]} Rb3 {[%emt 0:09:17]} 42. Qg3 {[%emt 0:03:20]} Qa4 {[%emt 0:03:27]} 43. c5 {[%emt 0:07:48]} Qa3 {[%emt 0:04:25]} 44. Rcd1 {[%emt 0:06:11]} Bxc5 {[%emt 0:01:07]} 45. Qf3 {[%emt 0:03:16]} Qb4 {[%emt 0:08:50]} 46. Qd5 {[%emt 0:03:36]} Rxd3 {[%emt 0:16:53]} 47. Rxd3 {[%emt 0:00:13]} Qb6 {[%emt 0:01:41]} 48. Rg3 {[%emt 0:04:16]} d3 {[%emt 0:04:30]} 49. Rxd3 {[%emt 0:00:59]} g5 {[%emt 0:02:47]} 50. fxg5 {[%emt 0:03:55]} Qb4 {[%emt 0:01:35]} 51. g6+ {[%emt 0:00:22]} Kh6 {[%emt 0:00:24]} 52. Bg5+ {[%emt 0:03:51]} Kg7 {[%emt 0:01:34]} 53. e6 {[%emt 0:02:53]} Qe1+ {[%emt 0:00:49]} 54. Kh2 {[%emt 0:00:12]} Qg1+ {[%emt 0:02:12]} 55. Kh3 {[%emt 0:00:11]} Qh1+ {[%emt 0:00:16]} 56. Kg3 {[%emt 0:00:23]} Qe1+ {[%emt 0:01:22]} 57. Kh3 {[%emt 0:00:42]} Qh1+ {[%emt 0:00:07]} 58. Kg3 {[%emt 0:00:04]} 1/2-1/2